[Event "Early-Titled-Tuesday-Blitz-July-09-2024"]
[Site "Chess.com"]
[Date "2024.07.09"]
[Round "1"]
[White "Zorbos"]
[Black "unbreakablepawn35"]
[Result "1-0"]
[WhiteElo "2692"]
[BlackElo "2381"]
[TimeControl "180+1"]
[EndTime "8:05:35 PDT"]
[Termination "Zorbos won by resignation"]

1. e4 {[%clk 0:02:54.4]} 1... d5 {[%clk 0:02:59.2]} 2. exd5 {[%clk 0:02:52.7]}
2... Qxd5 {[%clk 0:03:00.1]} 3. Nc3 {[%clk 0:02:52.7]} 3... Qd8 {[%clk
0:03:00.2]} 4. Nf3 {[%clk 0:02:53]} 4... Nf6 {[%clk 0:03:00.6]} 5. Bc4 {[%clk
0:02:42.1]} 5... a6 {[%clk 0:03:00.2]} 6. O-O {[%clk 0:02:41.9]} 6... b5 {[%clk
0:03:00]} 7. Bb3 {[%clk 0:02:42.6]} 7... e6 {[%clk 0:02:59.9]} 8. d4 {[%clk
0:02:41.4]} 8... Bd6 {[%clk 0:02:59.6]} 9. Re1 {[%clk 0:02:41.5]} 9... O-O
{[%clk 0:02:59.5]} 10. Bg5 {[%clk 0:02:39.7]} 10... Bb7 {[%clk 0:02:59]} 11. Ne5
{[%clk 0:02:36.6]} 11... h6 {[%clk 0:02:54.9]} 12. Bh4 {[%clk 0:02:36]} 12... c5
{[%clk 0:02:50.5]} 13. dxc5 {[%clk 0:02:35.1]} 13... Bxc5 {[%clk 0:02:49.8]} 14.
Qe2 {[%clk 0:02:35]} 14... Nc6 {[%clk 0:02:45.8]} 15. Rad1 {[%clk 0:02:34]}
15... Qe7 {[%clk 0:02:45.6]} 16. Rd7 {[%clk 0:02:28]} 16... Qxd7 {[%clk
0:02:37.3]} 17. Nxd7 {[%clk 0:02:27.7]} 17... Nxd7 {[%clk 0:02:38.2]} 18. Ne4
{[%clk 0:02:27.9]} 18... Be7 {[%clk 0:02:34.3]} 19. Bxe7 {[%clk 0:02:25]} 19...
Nxe7 {[%clk 0:02:35.2]} 20. Nd6 {[%clk 0:02:25.5]} 20... Bd5 {[%clk 0:02:34.3]}
21. c3 {[%clk 0:02:10.2]} 21... Rad8 {[%clk 0:02:31.2]} 22. Bc2 {[%clk
0:02:06.4]} 22... Nf6 {[%clk 0:02:26.4]} 23. Qe5 {[%clk 0:02:01.7]} 23... Nc6
{[%clk 0:02:16.9]} 24. Qg3 {[%clk 0:02:01.7]} 24... Rd7 {[%clk 0:02:09.7]} 25.
a4 {[%clk 0:01:58.4]} 25... b4 {[%clk 0:02:04]} 26. c4 {[%clk 0:01:56.7]} 26...
Nd4 {[%clk 0:01:44.4]} 27. Bb1 {[%clk 0:01:39.6]} 27... Bc6 {[%clk 0:01:40.5]}
28. c5 {[%clk 0:01:35.5]} 28... Bxa4 {[%clk 0:01:35.3]} 29. Qd3 {[%clk
0:01:35.5]} 29... Nf5 {[%clk 0:01:31]} 30. Qxa6 {[%clk 0:01:34.6]} 30... Nxd6
{[%clk 0:01:29.5]} 31. Qxa4 {[%clk 0:01:34.7]} 31... Nc4 {[%clk 0:01:28]} 32.
Qxb4 {[%clk 0:01:31.6]} 32... Nd2 {[%clk 0:01:26.2]} 33. c6 {[%clk 0:01:29.8]}
33... Rd5 {[%clk 0:01:06.7]} 34. c7 {[%clk 0:01:29.8]} 34... Nxb1 {[%clk
0:01:00.1]} 35. Qxf8+ {[%clk 0:01:28.7]} 35... Kxf8 {[%clk 0:00:59.4]} 36. c8=Q+
{[%clk 0:01:29.6]} 36... Ke7 {[%clk 0:00:59.1]} 37. Rxb1 {[%clk 0:01:30]} 37...
Nd7 {[%clk 0:00:59.4]} 38. b4 {[%clk 0:01:29.2]} 38... f5 {[%clk 0:00:59.6]} 39.
b5 {[%clk 0:01:29.1]} 39... Rc5 {[%clk 0:01:00]} 40. Qg8 {[%clk 0:01:25.2]}
40... Kf6 {[%clk 0:00:57.5]} 41. b6 {[%clk 0:01:25.8]} 41... Nxb6 {[%clk
0:00:57]} 42. Qd8+ {[%clk 0:01:26.4]} 42... Kg6 {[%clk 0:00:57.2]} 43. Qxb6
{[%clk 0:01:27.3]} 43... Rc1+ {[%clk 0:00:57.3]} 44. Rxc1 {[%clk 0:01:27.3]}
44... Kf7 {[%clk 0:00:56.9]} 45. Re1 {[%clk 0:01:26.9]} 1-0

[Event "Early-Titled-Tuesday-Blitz-July-09-2024"]
[Site "Chess.com"]
[Date "2024.07.09"]
[Round "1"]
[White "neistoviupryam"]
[Black "Zavgorodniy_Sergiy"]
[Result "0-1"]
[WhiteElo "2334"]
[BlackElo "2654"]
[TimeControl "180+1"]
[EndTime "8:05:35 PDT"]
[Termination "Zavgorodniy_Sergiy won by resignation"]

1. e4 {[%clk 0:03:00.2]} 1... e5 {[%clk 0:02:59.1]} 2. Nf3 {[%clk 0:02:59.5]}
2... d6 {[%clk 0:02:59.7]} 3. Bc4 {[%clk 0:02:59.2]} 3... Be7 {[%clk 0:02:58.8]}
4. h3 {[%clk 0:02:58.5]} 4... Nf6 {[%clk 0:02:58.8]} 5. Nc3 {[%clk 0:02:57.5]}
5... O-O {[%clk 0:02:58.1]} 6. d4 {[%clk 0:02:57.7]} 6... exd4 {[%clk
0:02:56.9]} 7. Nxd4 {[%clk 0:02:57.8]} 7... Nxe4 {[%clk 0:02:54.2]} 8. Nxe4
{[%clk 0:02:53.8]} 8... d5 {[%clk 0:02:54.4]} 9. Bxd5 {[%clk 0:02:51.2]} 9...
Qxd5 {[%clk 0:02:53.3]} 10. Qd3 {[%clk 0:02:38.9]} 10... f5 {[%clk 0:02:27.3]}
11. Ng3 {[%clk 0:02:29.1]} 11... Qxg2 {[%clk 0:02:24.4]} 12. Bf4 {[%clk
0:02:19]} 12... Qd5 {[%clk 0:02:07.8]} 13. O-O-O {[%clk 0:02:09.8]} 13... Qxa2
{[%clk 0:02:04.4]} 14. Nb3 {[%clk 0:02:09.3]} 14... Bf6 {[%clk 0:01:50]} 15.
Qd5+ {[%clk 0:01:43.8]} 15... Kh8 {[%clk 0:01:48.1]} 16. Be5 {[%clk 0:01:43.6]}
16... Bxe5 {[%clk 0:01:35.1]} 17. Qxe5 {[%clk 0:01:42.5]} 17... Nc6 {[%clk
0:01:35.6]} 18. Qc3 {[%clk 0:01:41.2]} 18... Be6 {[%clk 0:01:33]} 19. Nh5 {[%clk
0:01:38.7]} 19... Rf7 {[%clk 0:01:30.7]} 20. Rhe1 {[%clk 0:01:32.6]} 20... Bxb3
{[%clk 0:01:25.8]} 21. cxb3 {[%clk 0:01:32.2]} 21... a5 {[%clk 0:01:11.1]} 22.
Rg1 {[%clk 0:01:29.9]} 22... Qa1+ {[%clk 0:01:07]} 23. Kc2 {[%clk 0:01:29.3]}
23... Nb4+ {[%clk 0:01:07]} 24. Qxb4 {[%clk 0:01:17.7]} 24... Qxd1+ {[%clk
0:01:05.7]} 25. Rxd1 {[%clk 0:01:15.9]} 25... axb4 {[%clk 0:01:05.6]} 26. Rd4
{[%clk 0:01:11.9]} 26... c5 {[%clk 0:01:03.2]} 27. Rd5 {[%clk 0:01:12.2]} 27...
Rc8 {[%clk 0:01:02.7]} 28. Nf4 {[%clk 0:01:09.7]} 28... g6 {[%clk 0:00:58.9]}
29. Ne6 {[%clk 0:01:08.3]} 29... Re7 {[%clk 0:00:58.8]} 30. Ng5 {[%clk
0:01:07.2]} 30... Kg7 {[%clk 0:00:57.7]} 31. Rd2 {[%clk 0:01:04.1]} 31... b5
{[%clk 0:00:55.2]} 32. h4 {[%clk 0:01:03.3]} 32... c4 {[%clk 0:00:55.3]} 33. Nf3
{[%clk 0:01:00.8]} 33... c3 {[%clk 0:00:54.2]} 34. bxc3 {[%clk 0:00:57]} 34...
Rxc3+ {[%clk 0:00:53.1]} 0-1

[Event "Early-Titled-Tuesday-Blitz-July-09-2024"]
[Site "Chess.com"]
[Date "2024.07.09"]
[Round "1"]
[White "Gryffindorac8"]
[Black "Vladimir_Zakhartsov"]
[Result "0-1"]
[WhiteElo "2482"]
[BlackElo "2884"]
[TimeControl "180+1"]
[EndTime "8:05:36 PDT"]
[Termination "Vladimir_Zakhartsov won by resignation"]

1. d4 {[%clk 0:03:00.9]} 1... Nf6 {[%clk 0:02:59.6]} 2. c4 {[%clk 0:03:00.6]}
2... e6 {[%clk 0:03:00.1]} 3. Nf3 {[%clk 0:03:00.3]} 3... c5 {[%clk 0:02:59.9]}
4. d5 {[%clk 0:02:59.7]} 4... exd5 {[%clk 0:03:00.8]} 5. cxd5 {[%clk 0:03:00]}
5... b5 {[%clk 0:03:01.5]} 6. g3 {[%clk 0:02:04]} 6... d6 {[%clk 0:03:00.8]} 7.
Bg2 {[%clk 0:02:04]} 7... g6 {[%clk 0:03:01]} 8. O-O {[%clk 0:02:03.9]} 8... Bg7
{[%clk 0:03:01.5]} 9. a4 {[%clk 0:02:01.4]} 9... b4 {[%clk 0:03:01.7]} 10. Nbd2
{[%clk 0:01:59.2]} 10... O-O {[%clk 0:03:01]} 11. Nc4 {[%clk 0:01:54.9]} 11...
Ba6 {[%clk 0:03:00.7]} 12. Qc2 {[%clk 0:01:52.8]} 12... Re8 {[%clk 0:02:59.4]}
13. Bf4 {[%clk 0:01:49.8]} 13... Ne4 {[%clk 0:02:54.2]} 14. Rfe1 {[%clk
0:01:37.9]} 14... Bxc4 {[%clk 0:02:34]} 15. Qxc4 {[%clk 0:01:35.2]} 15... Bxb2
{[%clk 0:02:34.6]} 16. Rab1 {[%clk 0:01:27.7]} 16... Bc3 {[%clk 0:02:24]} 17.
Red1 {[%clk 0:01:27.2]} 17... Nd7 {[%clk 0:02:21.6]} 18. h4 {[%clk 0:01:06.5]}
18... Bg7 {[%clk 0:02:16.4]} 19. Ng5 {[%clk 0:01:02.3]} 19... Nb6 {[%clk
0:02:16.1]} 20. Qa6 {[%clk 0:00:50]} 20... Nc3 {[%clk 0:02:06.6]} 21. Re1 {[%clk
0:00:24.7]} 21... Nxb1 {[%clk 0:02:01.8]} 22. Rxb1 {[%clk 0:00:25.6]} 22... Qc8
{[%clk 0:01:53.1]} 23. Qb5 {[%clk 0:00:18.3]} 23... Qd7 {[%clk 0:01:48]} 24. Qa6
{[%clk 0:00:17.6]} 24... Qxa4 {[%clk 0:01:46.1]} 25. Qb7 {[%clk 0:00:16.5]}
25... Qd7 {[%clk 0:01:46.1]} 26. Qa6 {[%clk 0:00:16.1]} 26... Be5 {[%clk
0:01:33.7]} 27. Bh3 {[%clk 0:00:15.6]} 27... Qc7 {[%clk 0:01:30.3]} 28. Be3
{[%clk 0:00:14.9]} 28... Bxg3 {[%clk 0:01:27.3]} 0-1

[Event "Early-Titled-Tuesday-Blitz-July-09-2024"]
[Site "Chess.com"]
[Date "2024.07.09"]
[Round "1"]
[White "GothamChess"]
[Black "Road2GM3000"]
[Result "1-0"]
[WhiteElo "2752"]
[BlackElo "2418"]
[TimeControl "180+1"]
[EndTime "8:05:36 PDT"]
[Termination "GothamChess won on time"]

1. e4 {[%clk 0:02:51.2]} 1... c5 {[%clk 0:02:59]} 2. a3 {[%clk 0:02:50.1]} 2...
b6 {[%clk 0:02:42.2]} 3. Nc3 {[%clk 0:02:40.8]} 3... e6 {[%clk 0:02:40.5]} 4. d4
{[%clk 0:02:41]} 4... cxd4 {[%clk 0:02:39.9]} 5. Qxd4 {[%clk 0:02:41.9]} 5...
Nc6 {[%clk 0:02:39.8]} 6. Qe3 {[%clk 0:02:41]} 6... d6 {[%clk 0:02:33.1]} 7. Nf3
{[%clk 0:02:39.7]} 7... Nf6 {[%clk 0:02:33.4]} 8. Bb5 {[%clk 0:02:38.5]} 8...
Bd7 {[%clk 0:02:31.4]} 9. Bd2 {[%clk 0:02:36.3]} 9... Be7 {[%clk 0:02:31.7]} 10.
h3 {[%clk 0:02:35.4]} 10... a6 {[%clk 0:02:20]} 11. Be2 {[%clk 0:02:27.2]} 11...
O-O {[%clk 0:02:19.3]} 12. O-O {[%clk 0:02:26.4]} 12... b5 {[%clk 0:02:13.2]}
13. Rfd1 {[%clk 0:02:09]} 13... Qc7 {[%clk 0:02:09.6]} 14. Qf4 {[%clk
0:01:59.3]} 14... Ne5 {[%clk 0:01:43.9]} 15. Qg3 {[%clk 0:01:53.5]} 15... Rfd8
{[%clk 0:01:27.2]} 16. Be3 {[%clk 0:01:51]} 16... Rab8 {[%clk 0:01:20.6]} 17.
Bd4 {[%clk 0:01:50]} 17... Nxf3+ {[%clk 0:01:15.8]} 18. Bxf3 {[%clk 0:01:48.5]}
18... Bc6 {[%clk 0:01:16.2]} 19. e5 {[%clk 0:01:44.6]} 19... Ne8 {[%clk
0:01:16.4]} 20. Ne4 {[%clk 0:01:36.7]} 20... Bxe4 {[%clk 0:01:10.4]} 21. Bxe4
{[%clk 0:01:37.6]} 21... d5 {[%clk 0:01:06.7]} 22. Bd3 {[%clk 0:01:36.7]} 22...
Bc5 {[%clk 0:01:03]} 23. Qh4 {[%clk 0:01:36.9]} 23... g6 {[%clk 0:01:02.2]} 24.
c3 {[%clk 0:01:21.7]} 1-0

[Event "Early-Titled-Tuesday-Blitz-July-09-2024"]
[Site "Chess.com"]
[Date "2024.07.09"]
[Round "1"]
[White "HansOnTwitch"]
[Black "AA95"]
[Result "1-0"]
[WhiteElo "3133"]
[BlackElo "2534"]
[TimeControl "180+1"]
[EndTime "8:05:37 PDT"]
[Termination "HansOnTwitch won by checkmate"]

1. e4 {[%clk 0:03:00.9]} 1... c5 {[%clk 0:02:46.3]} 2. Nf3 {[%clk 0:02:59.9]}
2... Nc6 {[%clk 0:02:23.3]} 3. Bb5 {[%clk 0:02:58.8]} 3... g6 {[%clk 0:02:13.4]}
4. O-O {[%clk 0:02:57.5]} 4... Bg7 {[%clk 0:02:13.2]} 5. Bxc6 {[%clk 0:02:58.1]}
5... bxc6 {[%clk 0:02:12.9]} 6. Re1 {[%clk 0:02:58.1]} 6... e5 {[%clk
0:02:11.6]} 7. c3 {[%clk 0:02:54]} 7... d6 {[%clk 0:02:03.5]} 8. d4 {[%clk
0:02:52]} 8... cxd4 {[%clk 0:02:01.5]} 9. cxd4 {[%clk 0:02:52.9]} 9... Bg4
{[%clk 0:02:01.4]} 10. dxe5 {[%clk 0:02:51.7]} 10... Bxf3 {[%clk 0:01:57]} 11.
Qxf3 {[%clk 0:02:51.5]} 11... dxe5 {[%clk 0:01:54.3]} 12. Rd1 {[%clk 0:02:40.1]}
12... Qc7 {[%clk 0:01:48.8]} 13. Na3 {[%clk 0:02:38.9]} 13... Ne7 {[%clk
0:01:33.8]} 14. Nc4 {[%clk 0:02:38.3]} 14... O-O {[%clk 0:01:26.3]} 15. Be3
{[%clk 0:02:35.3]} 15... c5 {[%clk 0:01:05.9]} 16. b3 {[%clk 0:02:34.7]} 16...
f5 {[%clk 0:00:59.1]} 17. h3 {[%clk 0:02:29.6]} 17... Rad8 {[%clk 0:00:48.6]}
18. Rac1 {[%clk 0:02:28.6]} 18... f4 {[%clk 0:00:42.2]} 19. Bd2 {[%clk
0:02:22.5]} 19... Nc6 {[%clk 0:00:42.4]} 20. Bc3 {[%clk 0:02:22.7]} 20... Nd4
{[%clk 0:00:39]} 21. Bxd4 {[%clk 0:02:21.9]} 21... exd4 {[%clk 0:00:39.9]} 22.
Nb2 {[%clk 0:02:20.9]} 22... Qa5 {[%clk 0:00:25.8]} 23. Na4 {[%clk 0:02:21.2]}
23... Rc8 {[%clk 0:00:23.9]} 24. Rc4 {[%clk 0:02:20.9]} 24... Be5 {[%clk
0:00:15.6]} 25. Nxc5 {[%clk 0:02:18.5]} 25... Qxa2 {[%clk 0:00:10.8]} 26. Qg4
{[%clk 0:02:11.9]} 26... Kh8 {[%clk 0:00:07.7]} 27. Nd7 {[%clk 0:02:11]} 27...
Rxc4 {[%clk 0:00:02.6]} 28. bxc4 {[%clk 0:02:11.9]} 28... Re8 {[%clk 0:00:02.2]}
29. Nxe5 {[%clk 0:02:12.3]} 29... Rxe5 {[%clk 0:00:02.4]} 30. Qxf4 {[%clk
0:02:09.5]} 30... Re7 {[%clk 0:00:01.1]} 31. Qf8# {[%clk 0:01:36]} 1-0

[Event "Early-Titled-Tuesday-Blitz-July-09-2024"]
[Site "Chess.com"]
[Date "2024.07.09"]
[Round "1"]
[White "yesilikeorangejuice"]
[Black "Msb2"]
[Result "0-1"]
[WhiteElo "2534"]
[BlackElo "3101"]
[TimeControl "180+1"]
[EndTime "8:05:38 PDT"]
[Termination "Msb2 won by resignation"]

1. e4 {[%clk 0:03:00.9]} 1... e6 {[%clk 0:03:00.4]} 2. d4 {[%clk 0:02:58.1]}
2... d5 {[%clk 0:03:01]} 3. e5 {[%clk 0:02:58.1]} 3... c5 {[%clk 0:03:01.2]} 4.
c3 {[%clk 0:02:55.3]} 4... Nc6 {[%clk 0:03:01.7]} 5. Nf3 {[%clk 0:02:55.5]} 5...
Nge7 {[%clk 0:03:02.4]} 6. Na3 {[%clk 0:02:54.5]} 6... Bd7 {[%clk 0:03:01.9]} 7.
Nc2 {[%clk 0:02:54.5]} 7... Qa5 {[%clk 0:03:02.5]} 8. Bd2 {[%clk 0:02:48]} 8...
Qb6 {[%clk 0:03:02.5]} 9. Bd3 {[%clk 0:02:44.8]} 9... c4 {[%clk 0:03:01.2]} 10.
Be2 {[%clk 0:02:43.4]} 10... Qxb2 {[%clk 0:03:01.9]} 11. Rb1 {[%clk 0:02:41.4]}
11... Qxa2 {[%clk 0:03:02.1]} 12. Rxb7 {[%clk 0:02:42.1]} 12... Qa6 {[%clk
0:03:01.5]} 13. Qb1 {[%clk 0:02:38.5]} 13... Nc8 {[%clk 0:02:49.3]} 14. O-O
{[%clk 0:02:37.6]} 14... Nb6 {[%clk 0:02:48.7]} 15. Rxd7 {[%clk 0:02:34.1]}
15... Nxd7 {[%clk 0:02:47.6]} 16. Ne3 {[%clk 0:02:30.7]} 16... Be7 {[%clk
0:02:47.1]} 17. Qc2 {[%clk 0:02:29.8]} 17... Rb8 {[%clk 0:02:46.2]} 18. Ng4
{[%clk 0:02:29.3]} 18... Qb7 {[%clk 0:02:45.6]} 19. Qa4 {[%clk 0:02:24]} 19...
Qb5 {[%clk 0:02:44.7]} 20. Qa1 {[%clk 0:02:23.3]} 20... O-O {[%clk 0:02:43.1]}
21. Bd1 {[%clk 0:02:21.2]} 21... Qb2 {[%clk 0:02:32.9]} 22. Qa4 {[%clk
0:02:17.3]} 22... Rfc8 {[%clk 0:02:32]} 23. Bg5 {[%clk 0:02:13.2]} 23... Qxc3
{[%clk 0:02:28]} 24. Bxe7 {[%clk 0:02:10.2]} 24... Nxe7 {[%clk 0:02:28.9]} 25.
Qxd7 {[%clk 0:02:10]} 25... Nf5 {[%clk 0:02:22.6]} 26. Ng5 {[%clk 0:02:00.5]}
26... Rf8 {[%clk 0:02:22]} 27. Qxa7 {[%clk 0:01:26.1]} 27... Qxd4 {[%clk
0:02:21.7]} 28. Qd7 {[%clk 0:01:21.3]} 28... h5 {[%clk 0:02:11.4]} 29. Ne3
{[%clk 0:01:13.6]} 29... Nxe3 {[%clk 0:02:11.3]} 30. Bxh5 {[%clk 0:01:04.4]}
30... Nxf1 {[%clk 0:01:38.4]} 31. Bxf7+ {[%clk 0:01:02.7]} 31... Kh8 {[%clk
0:01:39]} 32. Qxe6 {[%clk 0:01:02.2]} 32... Qh4 {[%clk 0:01:27.8]} 33. Nf3
{[%clk 0:00:51.2]} 33... Qh6 {[%clk 0:01:27.6]} 34. Qxh6+ {[%clk 0:00:41.8]}
34... gxh6 {[%clk 0:01:28.5]} 35. e6 {[%clk 0:00:42.6]} 35... Rxf7 {[%clk
0:01:15.9]} 36. exf7 {[%clk 0:00:43.5]} 36... c3 {[%clk 0:01:16.5]} 0-1

[Event "Early-Titled-Tuesday-Blitz-July-09-2024"]
[Site "Chess.com"]
[Date "2024.07.09"]
[Round "1"]
[White "Prizant_academy"]
[Black "Brown_Mamba24"]
[Result "1-0"]
[WhiteElo "3024"]
[BlackElo "2529"]
[TimeControl "180+1"]
[EndTime "8:05:42 PDT"]
[Termination "Prizant_academy won by resignation"]

1. d4 {[%clk 0:03:00.9]} 1... Nf6 {[%clk 0:02:59.4]} 2. c4 {[%clk 0:03:00.8]}
2... g6 {[%clk 0:03:00]} 3. h4 {[%clk 0:02:59.6]} 3... Bg7 {[%clk 0:02:59]} 4.
Nc3 {[%clk 0:02:59.8]} 4... d6 {[%clk 0:02:58.4]} 5. e4 {[%clk 0:02:59.2]} 5...
e5 {[%clk 0:02:51.9]} 6. d5 {[%clk 0:02:42.2]} 6... a5 {[%clk 0:02:51.7]} 7. Be2
{[%clk 0:02:41.3]} 7... h5 {[%clk 0:02:50.9]} 8. Bg5 {[%clk 0:02:41.9]} 8... Na6
{[%clk 0:02:50.8]} 9. Nh3 {[%clk 0:02:40.9]} 9... Nc5 {[%clk 0:02:50.7]} 10. f3
{[%clk 0:02:40.4]} 10... Bd7 {[%clk 0:02:47.5]} 11. Nf2 {[%clk 0:02:38.2]} 11...
c6 {[%clk 0:02:44.9]} 12. dxc6 {[%clk 0:02:32]} 12... Bxc6 {[%clk 0:02:45.5]}
13. Qd2 {[%clk 0:02:32.1]} 13... Ne6 {[%clk 0:02:45.4]} 14. Be3 {[%clk
0:02:29.8]} 14... Qc7 {[%clk 0:02:40]} 15. O-O-O {[%clk 0:02:13.3]} 15... Rd8
{[%clk 0:02:29.2]} 16. Kb1 {[%clk 0:02:10.3]} 16... O-O {[%clk 0:02:29.2]} 17.
g4 {[%clk 0:02:06.2]} 17... Nd4 {[%clk 0:02:29.4]} 18. Rhg1 {[%clk 0:02:01.4]}
18... hxg4 {[%clk 0:02:28.3]} 19. fxg4 {[%clk 0:02:01.9]} 19... Nh7 {[%clk
0:02:06.7]} 20. h5 {[%clk 0:02:00.1]} 20... g5 {[%clk 0:02:07.1]} 21. Nd5 {[%clk
0:01:51.3]} 21... Bxd5 {[%clk 0:02:05.6]} 22. exd5 {[%clk 0:01:52.2]} 22... Bh6
{[%clk 0:01:51.2]} 23. Ne4 {[%clk 0:01:50.2]} 23... Nxe2 {[%clk 0:01:40.5]} 24.
Qxe2 {[%clk 0:01:50.1]} 24... f6 {[%clk 0:01:38.9]} 25. Ng3 {[%clk 0:01:38.2]}
25... Rf7 {[%clk 0:01:37.7]} 26. Nf5 {[%clk 0:01:38.5]} 26... Bf8 {[%clk
0:01:37.8]} 27. Rc1 {[%clk 0:01:38.2]} 27... a4 {[%clk 0:01:31.1]} 28. Qd2
{[%clk 0:01:34.6]} 28... a3 {[%clk 0:01:29.8]} 29. b3 {[%clk 0:01:34.4]} 29...
Ra8 {[%clk 0:01:26]} 30. Qb4 {[%clk 0:01:34.3]} 30... Ra6 {[%clk 0:01:17.2]} 31.
Rgd1 {[%clk 0:01:31.7]} 31... Qc8 {[%clk 0:01:15.5]} 32. c5 {[%clk 0:01:24.6]}
32... dxc5 {[%clk 0:01:13.7]} 33. Bxc5 {[%clk 0:01:25.5]} 33... Qd8 {[%clk
0:00:55.1]} 34. Bxf8 {[%clk 0:01:24.9]} 34... Rxf8 {[%clk 0:00:53.7]} 35. Qxb7
{[%clk 0:01:21.5]} 35... Rb6 {[%clk 0:00:50.7]} 36. Qc7 {[%clk 0:01:21.6]} 36...
Qxc7 {[%clk 0:00:39.7]} 37. Rxc7 {[%clk 0:01:22.5]} 37... Rd8 {[%clk 0:00:40.3]}
38. d6 {[%clk 0:01:22.8]} 38... Nf8 {[%clk 0:00:39.2]} 39. Nh6+ {[%clk
0:01:23.1]} 39... Kh8 {[%clk 0:00:38.5]} 40. Nf7+ {[%clk 0:01:24]} 1-0

[Event "Early-Titled-Tuesday-Blitz-July-09-2024"]
[Site "Chess.com"]
[Date "2024.07.09"]
[Round "1"]
[White "RodriQA"]
[Black "atbenina64"]
[Result "0-1"]
[WhiteElo "2430"]
[BlackElo "2789"]
[TimeControl "180+1"]
[EndTime "8:05:42 PDT"]
[Termination "atbenina64 won by resignation"]

1. Nf3 {[%clk 0:02:53.8]} 1... Nf6 {[%clk 0:02:58.5]} 2. g3 {[%clk 0:02:53.9]}
2... d5 {[%clk 0:02:56.1]} 3. Bg2 {[%clk 0:02:52.3]} 3... e6 {[%clk 0:02:51.4]}
4. b3 {[%clk 0:02:49.3]} 4... Be7 {[%clk 0:02:49.9]} 5. Bb2 {[%clk 0:02:48.5]}
5... O-O {[%clk 0:02:50.3]} 6. O-O {[%clk 0:02:48.8]} 6... b6 {[%clk 0:02:46.5]}
7. c4 {[%clk 0:02:47.3]} 7... Bb7 {[%clk 0:02:46.5]} 8. e3 {[%clk 0:02:22.3]}
8... c5 {[%clk 0:02:42.8]} 9. d4 {[%clk 0:02:18.4]} 9... dxc4 {[%clk 0:02:41.7]}
10. bxc4 {[%clk 0:02:13.6]} 10... cxd4 {[%clk 0:02:32.1]} 11. exd4 {[%clk
0:02:03.5]} 11... Nc6 {[%clk 0:02:27.9]} 12. Qa4 {[%clk 0:01:52.5]} 12... Qd7
{[%clk 0:02:20.5]} 13. Nc3 {[%clk 0:01:30.2]} 13... Na5 {[%clk 0:02:10.9]} 14.
Qb5 {[%clk 0:00:48.2]} 14... Qc8 {[%clk 0:01:58.4]} 15. Ne5 {[%clk 0:00:31.8]}
15... Bxg2 {[%clk 0:01:48.3]} 16. Kxg2 {[%clk 0:00:32]} 16... a6 {[%clk
0:01:37.1]} 17. Qa4 {[%clk 0:00:30.1]} 17... Qc7 {[%clk 0:01:27.5]} 18. Rac1
{[%clk 0:00:27]} 18... Rfc8 {[%clk 0:01:25.9]} 19. Nd1 {[%clk 0:00:20.3]} 19...
b5 {[%clk 0:01:11.3]} 20. cxb5 {[%clk 0:00:13.6]} 20... Qb7+ {[%clk 0:01:11.6]}
21. Kg1 {[%clk 0:00:13.4]} 21... axb5 {[%clk 0:01:11.9]} 22. Rxc8+ {[%clk
0:00:12.8]} 22... Qxc8 {[%clk 0:01:12.8]} 23. Qb3 {[%clk 0:00:11.3]} 23... Nxb3
{[%clk 0:01:12.2]} 0-1

[Event "Early-Titled-Tuesday-Blitz-July-09-2024"]
[Site "Chess.com"]
[Date "2024.07.09"]
[Round "1"]
[White "RandomNoob04"]
[Black "NajdorfPlayerc5"]
[Result "1-0"]
[WhiteElo "2766"]
[BlackElo "2422"]
[TimeControl "180+1"]
[EndTime "8:05:45 PDT"]
[Termination "RandomNoob04 won on time"]

1. e4 {[%clk 0:03:00.9]} 1... c5 {[%clk 0:02:59.2]} 2. d4 {[%clk 0:03:01.3]}
2... cxd4 {[%clk 0:02:58.2]} 3. c3 {[%clk 0:03:01.9]} 3... Nf6 {[%clk
0:02:58.5]} 4. e5 {[%clk 0:03:02.1]} 4... Nd5 {[%clk 0:02:58.3]} 5. Nf3 {[%clk
0:03:03]} 5... Nc6 {[%clk 0:02:57.3]} 6. Bc4 {[%clk 0:03:03.5]} 6... Nb6 {[%clk
0:02:55.9]} 7. Bb3 {[%clk 0:03:04.1]} 7... d5 {[%clk 0:02:55.8]} 8. exd6 {[%clk
0:03:05]} 8... Qxd6 {[%clk 0:02:55.4]} 9. O-O {[%clk 0:03:05.4]} 9... Be6 {[%clk
0:02:51.7]} 10. Na3 {[%clk 0:03:05.8]} 10... Bxb3 {[%clk 0:02:28.8]} 11. Qxb3
{[%clk 0:03:06.7]} 11... Qd5 {[%clk 0:01:31.6]} 12. Nb5 {[%clk 0:03:06.2]} 12...
Qxb3 {[%clk 0:01:26.5]} 13. axb3 {[%clk 0:03:07.1]} 13... O-O-O {[%clk
0:01:01.8]} 14. Ng5 {[%clk 0:02:58.2]} 14... Rd5 {[%clk 0:00:51.9]} 15. Nxf7
{[%clk 0:02:54]} 15... Rxb5 {[%clk 0:00:51.7]} 16. Nxh8 {[%clk 0:02:54.1]} 16...
dxc3 {[%clk 0:00:46.7]} 17. bxc3 {[%clk 0:02:51.6]} 17... g6 {[%clk 0:00:25.8]}
18. Nf7 {[%clk 0:02:47]} 18... Bg7 {[%clk 0:00:25.3]} 19. Ng5 {[%clk 0:02:44.4]}
19... Rxb3 {[%clk 0:00:24.1]} 20. Be3 {[%clk 0:02:37.3]} 20... Bxc3 {[%clk
0:00:22.6]} 21. Rab1 {[%clk 0:02:36.7]} 21... Rxb1 {[%clk 0:00:22.1]} 22. Rxb1
{[%clk 0:02:37.6]} 22... Nd5 {[%clk 0:00:22.4]} 23. Ne4 {[%clk 0:02:34.6]} 23...
Nxe3 {[%clk 0:00:18.9]} 24. Nxc3 {[%clk 0:02:32.6]} 24... Nc4 {[%clk 0:00:18.2]}
25. Rc1 {[%clk 0:02:24.6]} 25... a6 {[%clk 0:00:13.5]} 26. Nd5 {[%clk
0:02:23.4]} 26... b5 {[%clk 0:00:05.1]} 27. Kf1 {[%clk 0:02:23.4]} 27... Kb7
{[%clk 0:00:04.5]} 28. Ke2 {[%clk 0:02:21.8]} 28... a5 {[%clk 0:00:04.5]} 29.
Nc3 {[%clk 0:02:13.4]} 29... b4 {[%clk 0:00:03.5]} 30. Ne4 {[%clk 0:02:14.1]}
30... Nd6 {[%clk 0:00:03]} 31. Nxd6+ {[%clk 0:02:06.5]} 31... exd6 {[%clk
0:00:03.9]} 32. Kd3 {[%clk 0:02:07.1]} 32... Kb6 {[%clk 0:00:02]} 33. Kc4 {[%clk
0:02:07.7]} 33... Ne5+ {[%clk 0:00:01.7]} 34. Kb3 {[%clk 0:01:59.1]} 34... Nd3
{[%clk 0:00:01.2]} 35. Rd1 {[%clk 0:01:59.8]} 35... Nxf2 {[%clk 0:00:01.5]} 36.
Rxd6+ {[%clk 0:01:59.3]} 36... Kb5 {[%clk 0:00:01.6]} 37. Rd5+ {[%clk
0:01:57.8]} 37... Kb6 {[%clk 0:00:02.1]} 38. Rd7 {[%clk 0:01:58.5]} 38... Ne4
{[%clk 0:00:01.3]} 39. Rxh7 {[%clk 0:01:58]} 39... Nc5+ {[%clk 0:00:01.7]} 40.
Kc4 {[%clk 0:01:58]} 40... Ne6 {[%clk 0:00:01.9]} 41. Rh6 {[%clk 0:01:57.1]}
41... Nf8 {[%clk 0:00:01.6]} 42. h4 {[%clk 0:01:56.4]} 1-0